[Event "Late-Titled-Tuesday-Blitz-May-14-2024"]
[Site "Chess.com"]
[Date "2024.05.14"]
[Round "2"]
[White "1800_strength"]
[Black "Cherepov_Alexej"]
[Result "1-0"]
[WhiteElo "2767"]
[BlackElo "2410"]
[TimeControl "180+1"]
[EndTime "14:19:46 PDT"]
[Termination "1800_strength won on time"]

1. a4 {[%clk 0:03:00.1]} 1... e5 {[%clk 0:02:57.9]} 2. Ra3 {[%clk 0:03:01]} 2...
Nf6 {[%clk 0:02:56.1]} 3. g3 {[%clk 0:03:00.5]} 3... Nc6 {[%clk 0:02:54.2]} 4.
Bg2 {[%clk 0:03:01]} 4... Bc5 {[%clk 0:02:53.8]} 5. Rc3 {[%clk 0:02:56.6]} 5...
Bd4 {[%clk 0:02:48]} 6. e3 {[%clk 0:02:55.8]} 6... Bxc3 {[%clk 0:02:45.6]} 7.
Nxc3 {[%clk 0:02:56.7]} 7... O-O {[%clk 0:02:45.4]} 8. b3 {[%clk 0:02:57.1]}
8... d5 {[%clk 0:02:45.2]} 9. Bb2 {[%clk 0:02:57.7]} 9... d4 {[%clk 0:02:44.7]}
10. Nce2 {[%clk 0:02:53.2]} 10... d3 {[%clk 0:02:36.8]} 11. Nc1 {[%clk
0:02:48.7]} 11... dxc2 {[%clk 0:02:30]} 12. Qxc2 {[%clk 0:02:49.6]} 12... Nb4
{[%clk 0:02:28.6]} 13. Qc3 {[%clk 0:02:47.1]} 13... a5 {[%clk 0:02:09.6]} 14.
Qxe5 {[%clk 0:02:42]} 14... Ra6 {[%clk 0:01:57.1]} 15. Nge2 {[%clk 0:02:19.7]}
15... Re8 {[%clk 0:01:46]} 16. Qc3 {[%clk 0:02:05.6]} 16... Bg4 {[%clk
0:01:41.2]} 17. O-O {[%clk 0:02:04.2]} 17... Bxe2 {[%clk 0:01:24.3]} 18. Nxe2
{[%clk 0:02:05.1]} 18... Qd3 {[%clk 0:01:23.8]} 19. Nf4 {[%clk 0:01:38.6]} 19...
Qxc3 {[%clk 0:01:19.1]} 20. Bxc3 {[%clk 0:01:39.5]} 20... Rb6 {[%clk 0:01:15.5]}
21. Bd4 {[%clk 0:01:39.3]} 21... Rd6 {[%clk 0:01:06.8]} 22. Bxb7 {[%clk
0:01:27.8]} 22... Rb8 {[%clk 0:01:05.3]} 23. Bf3 {[%clk 0:01:25.3]} 23... Nc2
{[%clk 0:01:02.3]} 24. Be5 {[%clk 0:01:22.2]} 24... Rxd2 {[%clk 0:00:59.5]} 25.
Bc3 {[%clk 0:01:18.9]} 25... Rd7 {[%clk 0:00:53]} 26. Rc1 {[%clk 0:01:18.4]}
26... Nb4 {[%clk 0:00:49.5]} 27. Be5 {[%clk 0:01:14.2]} 27... Nd3 {[%clk
0:00:34]} 28. Bxf6 {[%clk 0:00:50.7]} 28... Nxc1 {[%clk 0:00:30.8]} 29. Bc3
{[%clk 0:00:49.2]} 29... Rxb3 {[%clk 0:00:25.7]} 30. Bxa5 {[%clk 0:00:49.4]}
30... Ra3 {[%clk 0:00:19.5]} 31. Kg2 {[%clk 0:00:47.9]} 31... c5 {[%clk
0:00:14.5]} 32. Bc6 {[%clk 0:00:46.3]} 32... Ra7 {[%clk 0:00:14.1]} 33. Bb6
{[%clk 0:00:43.3]} 33... Ra6 {[%clk 0:00:12.7]} 34. Nd5 {[%clk 0:00:38.9]} 34...
Ra2 {[%clk 0:00:10.9]} 35. Bb5 {[%clk 0:00:36.2]} 35... Ra8 {[%clk 0:00:10.3]}
36. Bxc5 {[%clk 0:00:36.4]} 36... Nb3 {[%clk 0:00:07.7]} 37. Bb6 {[%clk
0:00:33.3]} 37... Nd2 {[%clk 0:00:07.3]} 38. Nc3 {[%clk 0:00:30.6]} 38... Rc2
{[%clk 0:00:06.5]} 39. Bd4 {[%clk 0:00:31.2]} 39... Nb3 {[%clk 0:00:05.4]} 40.
Ne2 {[%clk 0:00:27.3]} 40... Rb8 {[%clk 0:00:03.4]} 41. Kf3 {[%clk 0:00:17]}
41... Nxd4+ {[%clk 0:00:03.2]} 42. Nxd4 {[%clk 0:00:17.3]} 42... Rb2 {[%clk
0:00:02.8]} 43. h4 {[%clk 0:00:17.4]} 43... h5 {[%clk 0:00:02]} 44. Kg2 {[%clk
0:00:17.3]} 44... g6 {[%clk 0:00:02.3]} 45. Bc6 {[%clk 0:00:16.6]} 45... R2b4
{[%clk 0:00:01.7]} 46. a5 {[%clk 0:00:16.6]} 46... Rc8 {[%clk 0:00:01.6]} 47. a6
{[%clk 0:00:16.1]} 47... Rb2 {[%clk 0:00:01.2]} 48. a7 {[%clk 0:00:15.7]} 48...
Ra2 {[%clk 0:00:01.5]} 49. a8=Q {[%clk 0:00:16.2]} 49... Raxa8 {[%clk
0:00:01.1]} 50. Bxa8 {[%clk 0:00:17.1]} 50... Rxa8 {[%clk 0:00:01.4]} 51. Kf3
{[%clk 0:00:18]} 51... Kg7 {[%clk 0:00:01.3]} 52. Ne2 {[%clk 0:00:18.9]} 52...
Re8 {[%clk 0:00:01.3]} 53. Nf4 {[%clk 0:00:19.8]} 53... Rd8 {[%clk 0:00:01.6]}
54. g4 {[%clk 0:00:19.8]} 54... Ra8 {[%clk 0:00:02.2]} 55. gxh5 {[%clk
0:00:20.3]} 55... gxh5 {[%clk 0:00:02.4]} 56. Nxh5+ {[%clk 0:00:21.2]} 56... Kg6
{[%clk 0:00:03]} 57. Ng3 {[%clk 0:00:21.7]} 57... Kf6 {[%clk 0:00:03.4]} 58. Kg4
{[%clk 0:00:22.2]} 58... Rg8+ {[%clk 0:00:03.4]} 59. Kf4 {[%clk 0:00:22.6]}
59... Rh8 {[%clk 0:00:03.6]} 60. h5 {[%clk 0:00:23.2]} 60... Ke6 {[%clk
0:00:03.8]} 61. Kg4 {[%clk 0:00:23.6]} 61... Rg8+ {[%clk 0:00:04]} 62. Kh4
{[%clk 0:00:24.2]} 62... Kf6 {[%clk 0:00:04]} 63. f4 {[%clk 0:00:23.2]} 63...
Rh8 {[%clk 0:00:03.9]} 64. e4 {[%clk 0:00:23.1]} 64... Rg8 {[%clk 0:00:04.1]}
65. e5+ {[%clk 0:00:23.6]} 65... Ke6 {[%clk 0:00:04.4]} 66. h6 {[%clk
0:00:23.4]} 66... f6 {[%clk 0:00:04.4]} 67. Ne4 {[%clk 0:00:21.5]} 67... fxe5
{[%clk 0:00:03.8]} 68. Ng5+ {[%clk 0:00:22.1]} 68... Kf5 {[%clk 0:00:03.9]} 69.
Nf7 {[%clk 0:00:16.3]} 69... Rf8 {[%clk 0:00:03]} 70. Nxe5 {[%clk 0:00:14.7]}
70... Kf6 {[%clk 0:00:00.9]} 71. Nd7+ {[%clk 0:00:14.5]} 71... Kf7 {[%clk
0:00:00.3]} 72. Nxf8 {[%clk 0:00:15.4]} 72... Kxf8 {[%clk 0:00:01.1]} 73. Kg5
{[%clk 0:00:15.7]} 73... Kg8 {[%clk 0:00:00.7]} 74. Kg6 {[%clk 0:00:16.3]} 74...
Kh8 {[%clk 0:00:00.6]} 75. Kf7 {[%clk 0:00:16.2]} 75... Kh7 {[%clk 0:00:00.6]}
76. f5 {[%clk 0:00:16.9]} 76... Kxh6 {[%clk 0:00:00.6]} 77. f6 {[%clk
0:00:17.8]} 77... Kh7 {[%clk 0:00:00.8]} 78. Ke7 {[%clk 0:00:18.4]} 1-0

[Event "Late-Titled-Tuesday-Blitz-May-14-2024"]
[Site "Chess.com"]
[Date "2024.05.14"]
[Round "2"]
[White "Klendi"]
[Black "Lennis93"]
[Result "1-0"]
[WhiteElo "2415"]
[BlackElo "2699"]
[TimeControl "180+1"]
[EndTime "14:19:47 PDT"]
[Termination "Klendi won by checkmate"]

1. e4 {[%clk 0:03:00.9]} 1... c5 {[%clk 0:02:59.9]} 2. c3 {[%clk 0:02:59.2]}
2... Nf6 {[%clk 0:02:58.9]} 3. e5 {[%clk 0:02:59.2]} 3... Nd5 {[%clk 0:02:59.4]}
4. d4 {[%clk 0:02:59.5]} 4... cxd4 {[%clk 0:02:57.1]} 5. cxd4 {[%clk 0:03:00.4]}
5... d6 {[%clk 0:02:56.6]} 6. Nf3 {[%clk 0:03:00.3]} 6... Nc6 {[%clk 0:02:55.9]}
7. a3 {[%clk 0:02:58.4]} 7... dxe5 {[%clk 0:02:53.4]} 8. dxe5 {[%clk 0:02:58.5]}
8... Bg4 {[%clk 0:02:52.9]} 9. Bc4 {[%clk 0:02:46.3]} 9... e6 {[%clk 0:02:52.6]}
10. Be2 {[%clk 0:02:09.5]} 10... Nb6 {[%clk 0:02:46.8]} 11. O-O {[%clk
0:02:01.2]} 11... Be7 {[%clk 0:02:45.1]} 12. Nc3 {[%clk 0:02:01.2]} 12... O-O
{[%clk 0:02:44.7]} 13. Be3 {[%clk 0:01:59.2]} 13... Bxf3 {[%clk 0:02:41.9]} 14.
Bxf3 {[%clk 0:01:59.1]} 14... Nc4 {[%clk 0:02:42.3]} 15. Bxc6 {[%clk 0:01:53.2]}
15... bxc6 {[%clk 0:02:29.9]} 16. Qe2 {[%clk 0:01:50]} 16... Nxe5 {[%clk
0:02:23.4]} 17. Bxa7 {[%clk 0:01:48.9]} 17... Rxa7 {[%clk 0:02:20.1]} 18. Qxe5
{[%clk 0:01:48.9]} 18... Bf6 {[%clk 0:02:20.4]} 19. Qe3 {[%clk 0:01:48.9]} 19...
Qb8 {[%clk 0:02:18.5]} 20. Rac1 {[%clk 0:01:17.3]} 20... Rd7 {[%clk 0:02:06.3]}
21. b4 {[%clk 0:01:16.1]} 21... c5 {[%clk 0:01:45.7]} 22. Qxc5 {[%clk
0:00:48.8]} 22... Rc8 {[%clk 0:01:14.6]} 23. Qb5 {[%clk 0:00:46.8]} 23... Rb7
{[%clk 0:01:00.2]} 24. Qd3 {[%clk 0:00:39.9]} 24... Bg5 {[%clk 0:00:59.9]} 25.
Rcd1 {[%clk 0:00:35.8]} 25... h6 {[%clk 0:00:59.6]} 26. Ne4 {[%clk 0:00:35.6]}
26... Bf4 {[%clk 0:00:58.7]} 27. Nc5 {[%clk 0:00:34.5]} 27... Bxh2+ {[%clk
0:00:45.2]} 28. Kh1 {[%clk 0:00:34.6]} 28... Be5 {[%clk 0:00:44]} 29. Nxb7
{[%clk 0:00:32.2]} 29... Qxb7 {[%clk 0:00:44.9]} 30. Qd7 {[%clk 0:00:29.7]}
30... Rc7 {[%clk 0:00:45]} 31. Qd8+ {[%clk 0:00:26]} 31... Kh7 {[%clk
0:00:45.3]} 32. Qd3+ {[%clk 0:00:25.8]} 32... g6 {[%clk 0:00:45.4]} 33. Rfe1
{[%clk 0:00:22.4]} 33... Bf6 {[%clk 0:00:44.5]} 34. Qf3 {[%clk 0:00:21.8]} 34...
Qxf3 {[%clk 0:00:43]} 35. gxf3 {[%clk 0:00:22.7]} 35... Ra7 {[%clk 0:00:42.9]}
36. Re3 {[%clk 0:00:22.6]} 36... Bg5 {[%clk 0:00:42.7]} 37. Rb3 {[%clk
0:00:22.6]} 37... Kg7 {[%clk 0:00:41.1]} 38. b5 {[%clk 0:00:23.1]} 38... Bf4
{[%clk 0:00:40.2]} 39. b6 {[%clk 0:00:22.4]} 39... Ra5 {[%clk 0:00:37.6]} 40.
Rd4 {[%clk 0:00:21.1]} 40... Be5 {[%clk 0:00:35.6]} 41. Re4 {[%clk 0:00:19.4]}
41... Bb8 {[%clk 0:00:34.8]} 42. Rc4 {[%clk 0:00:18.8]} 42... Rh5+ {[%clk
0:00:30.8]} 43. Kg2 {[%clk 0:00:18.5]} 43... Rg5+ {[%clk 0:00:31.3]} 44. Kf1
{[%clk 0:00:18.7]} 44... h5 {[%clk 0:00:31.4]} 45. Rc8 {[%clk 0:00:18.2]} 45...
Bh2 {[%clk 0:00:30.5]} 46. b7 {[%clk 0:00:17.9]} 46... h4 {[%clk 0:00:29.3]} 47.
b8=Q {[%clk 0:00:16.3]} 47... Rg1+ {[%clk 0:00:29.9]} 48. Ke2 {[%clk 0:00:15.9]}
48... Bxb8 {[%clk 0:00:30.8]} 49. Rbxb8 {[%clk 0:00:15.9]} 49... g5 {[%clk
0:00:31.3]} 50. Rg8+ {[%clk 0:00:15.2]} 50... Kf6 {[%clk 0:00:31.7]} 51. Rh8
{[%clk 0:00:15.8]} 51... Ra1 {[%clk 0:00:31.7]} 52. Rh6+ {[%clk 0:00:14.5]}
52... Kg7 {[%clk 0:00:31.4]} 53. Rhh8 {[%clk 0:00:14]} 53... Ra2+ {[%clk
0:00:31.9]} 54. Kf1 {[%clk 0:00:12.1]} 54... Rxa3 {[%clk 0:00:32]} 55. Rbg8+
{[%clk 0:00:12.1]} 55... Kf6 {[%clk 0:00:31.8]} 56. Kg2 {[%clk 0:00:12.3]} 56...
Rb3 {[%clk 0:00:31.2]} 57. Rh6+ {[%clk 0:00:12.3]} 57... Kf5 {[%clk 0:00:30.7]}
58. Rg7 {[%clk 0:00:11.4]} 58... Rb7 {[%clk 0:00:29]} 59. Rh5 {[%clk 0:00:10.5]}
59... Kf6 {[%clk 0:00:26.8]} 60. Rhxg5 {[%clk 0:00:10.5]} 60... Rb3 {[%clk
0:00:21.5]} 61. Rg4 {[%clk 0:00:10.5]} 61... h3+ {[%clk 0:00:21.5]} 62. Kg3
{[%clk 0:00:09.6]} 62... h2 {[%clk 0:00:20.5]} 63. Rh7 {[%clk 0:00:09.7]} 63...
Rb1 {[%clk 0:00:18.6]} 64. Rxh2 {[%clk 0:00:09.7]} 64... Ke7 {[%clk 0:00:19]}
65. Rh7 {[%clk 0:00:09.5]} 65... Rg1+ {[%clk 0:00:15.8]} 66. Kf4 {[%clk
0:00:09.1]} 66... Ra1 {[%clk 0:00:15.3]} 67. Rgg7 {[%clk 0:00:09.4]} 67... Kd6
{[%clk 0:00:15.1]} 68. Rxf7 {[%clk 0:00:09.1]} 68... Ra4+ {[%clk 0:00:16]} 69.
Kg3 {[%clk 0:00:09.6]} 69... Ra3 {[%clk 0:00:16.9]} 70. Rf6 {[%clk 0:00:09.8]}
70... Kd5 {[%clk 0:00:16.9]} 71. Rhh6 {[%clk 0:00:10]} 71... e5 {[%clk
0:00:17.8]} 72. Rh5 {[%clk 0:00:10.4]} 72... Ra1 {[%clk 0:00:18.4]} 73. f4
{[%clk 0:00:10.7]} 73... Re1 {[%clk 0:00:19.3]} 74. Rxe5+ {[%clk 0:00:10.4]}
74... Rxe5 {[%clk 0:00:20.2]} 75. fxe5 {[%clk 0:00:11.3]} 75... Kxe5 {[%clk
0:00:21.1]} 76. Ra6 {[%clk 0:00:11.7]} 76... Ke4 {[%clk 0:00:22]} 77. f4 {[%clk
0:00:11.9]} 77... Kd5 {[%clk 0:00:22.2]} 78. f5 {[%clk 0:00:12.1]} 78... Ke5
{[%clk 0:00:22.6]} 79. f6 {[%clk 0:00:12.6]} 79... Kf5 {[%clk 0:00:23.1]} 80. f7
{[%clk 0:00:13.3]} 80... Kg5 {[%clk 0:00:24]} 81. f8=Q {[%clk 0:00:13.2]} 81...
Kh5 {[%clk 0:00:24.2]} 82. Qh6# {[%clk 0:00:13.5]} 1-0

[Event "Late-Titled-Tuesday-Blitz-May-14-2024"]
[Site "Chess.com"]
[Date "2024.05.14"]
[Round "2"]
[White "Jarming"]
[Black "GMBenjaminBok"]
[Result "1/2-1/2"]
[WhiteElo "2676"]
[BlackElo "3029"]
[TimeControl "180+1"]
[EndTime "14:19:56 PDT"]
[Termination "Game drawn by repetition"]

1. g3 {[%clk 0:03:00.5]} 1... d5 {[%clk 0:02:58.9]} 2. Bg2 {[%clk 0:03:00.3]}
2... c6 {[%clk 0:02:59.2]} 3. Nf3 {[%clk 0:03:00.3]} 3... Bg4 {[%clk 0:02:59.3]}
4. c4 {[%clk 0:02:57.8]} 4... e6 {[%clk 0:02:59.1]} 5. O-O {[%clk 0:02:54]} 5...
Nf6 {[%clk 0:02:59.2]} 6. Qc2 {[%clk 0:02:53.1]} 6... Nbd7 {[%clk 0:02:58.2]} 7.
b3 {[%clk 0:02:53]} 7... Bd6 {[%clk 0:02:57.4]} 8. Bb2 {[%clk 0:02:53.1]} 8...
h6 {[%clk 0:02:57.7]} 9. d3 {[%clk 0:02:53.2]} 9... O-O {[%clk 0:02:57.2]} 10.
Nbd2 {[%clk 0:02:53.3]} 10... e5 {[%clk 0:02:54.2]} 11. e4 {[%clk 0:02:48.8]}
11... dxe4 {[%clk 0:02:50.8]} 12. Nxe4 {[%clk 0:02:47]} 12... Nxe4 {[%clk
0:02:50.4]} 13. dxe4 {[%clk 0:02:47.9]} 13... Qe7 {[%clk 0:02:50.2]} 14. Rad1
{[%clk 0:02:47.2]} 14... Rfd8 {[%clk 0:02:49.5]} 15. Rd2 {[%clk 0:02:46.5]}
15... Nc5 {[%clk 0:02:25.2]} 16. Nh4 {[%clk 0:02:39.9]} 16... g6 {[%clk
0:02:08.8]} 17. h3 {[%clk 0:02:37.5]} 17... Be6 {[%clk 0:01:57]} 18. b4 {[%clk
0:02:30]} 18... Na6 {[%clk 0:01:40.2]} 19. a3 {[%clk 0:02:26.2]} 19... Bc7
{[%clk 0:01:39.9]} 20. Rfd1 {[%clk 0:02:21.1]} 20... Rxd2 {[%clk 0:01:39.5]} 21.
Rxd2 {[%clk 0:02:20.6]} 21... Rd8 {[%clk 0:01:40.4]} 22. c5 {[%clk 0:02:14.8]}
22... Nb8 {[%clk 0:01:36.6]} 23. Bf1 {[%clk 0:02:05.5]} 23... Rxd2 {[%clk
0:01:28.1]} 24. Qxd2 {[%clk 0:02:04]} 24... Kh7 {[%clk 0:01:27.5]} 25. Bc1
{[%clk 0:02:02]} 25... Qf8 {[%clk 0:01:19.4]} 26. Nf3 {[%clk 0:01:52.7]} 26...
Nd7 {[%clk 0:01:18.1]} 27. Bb2 {[%clk 0:01:23.7]} 27... Qe7 {[%clk 0:01:05.1]}
28. Kg2 {[%clk 0:01:21.8]} 28... f6 {[%clk 0:01:00.2]} 29. Qc2 {[%clk
0:01:20.6]} 29... Qf7 {[%clk 0:00:57.5]} 30. Nd2 {[%clk 0:01:19.7]} 30... Nf8
{[%clk 0:00:52.4]} 31. Bc4 {[%clk 0:01:20]} 31... Qd7 {[%clk 0:00:50.7]} 32.
Bxe6 {[%clk 0:01:19.2]} 32... Nxe6 {[%clk 0:00:51.6]} 33. h4 {[%clk 0:01:04.9]}
33... h5 {[%clk 0:00:40.3]} 34. Nc4 {[%clk 0:01:03.9]} 34... b5 {[%clk
0:00:37.4]} 35. cxb6 {[%clk 0:01:01]} 35... axb6 {[%clk 0:00:38.3]} 36. a4
{[%clk 0:00:58.6]} 36... b5 {[%clk 0:00:36.7]} 37. axb5 {[%clk 0:00:57.6]} 37...
cxb5 {[%clk 0:00:37.6]} 38. Na5 {[%clk 0:00:56.3]} 38... Bb6 {[%clk 0:00:28]}
39. Bc3 {[%clk 0:00:50.4]} 39... Kg7 {[%clk 0:00:23]} 40. Qe2 {[%clk 0:00:46.6]}
40... Bd4 {[%clk 0:00:16.7]} 41. Be1 {[%clk 0:00:41.1]} 41... Bb6 {[%clk
0:00:13.9]} 42. Nb3 {[%clk 0:00:41.5]} 42... Qc6 {[%clk 0:00:13.6]} 43. Qd3
{[%clk 0:00:39]} 43... Bd4 {[%clk 0:00:09]} 44. Bd2 {[%clk 0:00:35.2]} 44... Kf7
{[%clk 0:00:08.4]} 45. Be3 {[%clk 0:00:34.7]} 45... Qc4 {[%clk 0:00:07.1]} 46.
Qxc4 {[%clk 0:00:26.7]} 46... bxc4 {[%clk 0:00:08]} 47. Na5 {[%clk 0:00:27.4]}
47... c3 {[%clk 0:00:05.7]} 48. Kf3 {[%clk 0:00:27]} 48... c2 {[%clk 0:00:02.9]}
49. Nb3 {[%clk 0:00:26.8]} 49... Bc3 {[%clk 0:00:01.4]} 50. Ke2 {[%clk
0:00:25.1]} 50... Bxb4 {[%clk 0:00:01.1]} 51. Kd3 {[%clk 0:00:25]} 51... Bd6
{[%clk 0:00:01.7]} 52. Kxc2 {[%clk 0:00:25.1]} 52... f5 {[%clk 0:00:02.4]} 53.
Kd3 {[%clk 0:00:24.8]} 53... Bc7 {[%clk 0:00:02.9]} 54. Bd2 {[%clk 0:00:24.8]}
54... Bb6 {[%clk 0:00:02.9]} 55. Be3 {[%clk 0:00:23.4]} 55... Bc7 {[%clk
0:00:02.4]} 56. Nc5 {[%clk 0:00:21.6]} 56... Nd8 {[%clk 0:00:02]} 57. Nb3 {[%clk
0:00:20.4]} 57... Bd6 {[%clk 0:00:02.4]} 58. Nd2 {[%clk 0:00:20.6]} 58... Ne6
{[%clk 0:00:02.3]} 59. Nc4 {[%clk 0:00:21.5]} 59... Bc7 {[%clk 0:00:02.5]} 60.
Nd2 {[%clk 0:00:18.1]} 60... Nf8 {[%clk 0:00:02.6]} 61. Nc4 {[%clk 0:00:18.4]}
61... Nd7 {[%clk 0:00:03.1]} 62. Nd2 {[%clk 0:00:18.8]} 62... Ke6 {[%clk
0:00:03.7]} 63. Nc4 {[%clk 0:00:19.3]} 63... Nf6 {[%clk 0:00:04.3]} 64. exf5+
{[%clk 0:00:18.3]} 64... gxf5 {[%clk 0:00:04.1]} 65. Bg5 {[%clk 0:00:18.7]}
65... Ne4 {[%clk 0:00:03.9]} 66. Be3 {[%clk 0:00:18.4]} 66... Bd8 {[%clk
0:00:04.2]} 67. Nd2 {[%clk 0:00:18.3]} 67... Nf6 {[%clk 0:00:04.5]} 68. Ke2
{[%clk 0:00:17.8]} 68... Be7 {[%clk 0:00:04.5]} 69. Bg5 {[%clk 0:00:18.2]} 69...
Nd5 {[%clk 0:00:03.7]} 70. Bxe7 {[%clk 0:00:17.8]} 70... Nxe7 {[%clk 0:00:04.6]}
71. f3 {[%clk 0:00:18.1]} 71... Kd5 {[%clk 0:00:04.1]} 72. Kd3 {[%clk
0:00:18.6]} 72... Nc6 {[%clk 0:00:04.6]} 73. Nf1 {[%clk 0:00:17.6]} 73... Nb4+
{[%clk 0:00:04.7]} 74. Ke2 {[%clk 0:00:18.2]} 74... Ke6 {[%clk 0:00:04.4]} 75.
Ne3 {[%clk 0:00:18.7]} 75... Nc6 {[%clk 0:00:04.8]} 76. Nc2 {[%clk 0:00:18.3]}
76... Kd5 {[%clk 0:00:04.2]} 77. Kd3 {[%clk 0:00:18.8]} 77... Ke6 {[%clk
0:00:02.4]} 78. Ne3 {[%clk 0:00:18.3]} 78... Nd4 {[%clk 0:00:02.7]} 79. f4
{[%clk 0:00:17.8]} 79... exf4 {[%clk 0:00:03]} 80. Kxd4 {[%clk 0:00:17.1]} 80...
fxe3 {[%clk 0:00:03.2]} 81. Kxe3 {[%clk 0:00:18]} 81... Ke5 {[%clk 0:00:03.6]}
82. Kd3 {[%clk 0:00:16.3]} 82... Kd5 {[%clk 0:00:02.7]} 83. Ke3 {[%clk
0:00:16.6]} 83... Ke5 {[%clk 0:00:03.3]} 84. Kf3 {[%clk 0:00:16.5]} 84... Ke6
{[%clk 0:00:03.4]} 85. Ke3 {[%clk 0:00:15.6]} 85... Ke5 {[%clk 0:00:02.3]}
1/2-1/2

[Event "Late-Titled-Tuesday-Blitz-May-14-2024"]
[Site "Chess.com"]
[Date "2024.05.14"]
[Round "2"]
[White "Puzzlebot_1294"]
[Black "albayo"]
[Result "0-1"]
[WhiteElo "2640"]
[BlackElo "2408"]
[TimeControl "180+1"]
[EndTime "14:19:58 PDT"]
[Termination "albayo won by resignation"]

1. d4 {[%clk 0:03:00.9]} 1... Nf6 {[%clk 0:02:53.8]} 2. Bf4 {[%clk 0:02:51.4]}
2... c5 {[%clk 0:02:51.6]} 3. e3 {[%clk 0:02:50.2]} 3... d5 {[%clk 0:02:50.4]}
4. Nf3 {[%clk 0:02:49.5]} 4... Nc6 {[%clk 0:02:49.3]} 5. c3 {[%clk 0:02:49.8]}
5... Qb6 {[%clk 0:02:48.3]} 6. Qc2 {[%clk 0:02:49.2]} 6... Bf5 {[%clk 0:02:47]}
7. dxc5 {[%clk 0:02:44.1]} 7... Bxc2 {[%clk 0:02:35.8]} 8. cxb6 {[%clk 0:02:45]}
8... axb6 {[%clk 0:02:34.2]} 9. Na3 {[%clk 0:02:44.1]} 9... Bf5 {[%clk
0:02:29.9]} 10. Nb5 {[%clk 0:02:42.9]} 10... Kd7 {[%clk 0:02:28.8]} 11. a3
{[%clk 0:02:22.7]} 11... h6 {[%clk 0:02:20.8]} 12. h4 {[%clk 0:02:18.8]} 12...
e6 {[%clk 0:02:15.8]} 13. c4 {[%clk 0:02:15.7]} 13... Be7 {[%clk 0:01:57.9]} 14.
Rd1 {[%clk 0:02:10.2]} 14... Rhc8 {[%clk 0:01:49.1]} 15. Ne5+ {[%clk 0:01:56.8]}
15... Ke8 {[%clk 0:01:42.4]} 16. Nxc6 {[%clk 0:01:52.7]} 16... bxc6 {[%clk
0:01:42.8]} 17. Nc7+ {[%clk 0:01:53.3]} 17... Kd7 {[%clk 0:01:42.6]} 18. Nxa8
{[%clk 0:01:51.9]} 18... Rxa8 {[%clk 0:01:43.5]} 19. cxd5 {[%clk 0:01:47.4]}
19... exd5 {[%clk 0:01:43.1]} 20. f3 {[%clk 0:01:44.5]} 20... Ke6 {[%clk
0:01:37.2]} 21. g4 {[%clk 0:01:38.7]} 21... Bg6 {[%clk 0:01:32.5]} 22. Bh3
{[%clk 0:01:36.3]} 22... Ng8 {[%clk 0:01:20.8]} 23. h5 {[%clk 0:01:25.1]} 23...
Bh7 {[%clk 0:01:15.6]} 24. Kf2 {[%clk 0:01:21.5]} 24... f5 {[%clk 0:01:03.2]}
25. Rhe1 {[%clk 0:00:54.9]} 25... Nf6 {[%clk 0:00:53.8]} 26. Rc1 {[%clk
0:00:11.4]} 26... c5 {[%clk 0:00:45]} 27. Rcd1 {[%clk 0:00:10.1]} 27... fxg4
{[%clk 0:00:43.6]} 28. Bxg4+ {[%clk 0:00:11]} 28... Nxg4+ {[%clk 0:00:43.2]} 29.
fxg4 {[%clk 0:00:11.9]} 29... Be4 {[%clk 0:00:42.8]} 30. Kg3 {[%clk 0:00:12.1]}
30... Bf6 {[%clk 0:00:41.2]} 31. Rd2 {[%clk 0:00:11.3]} 31... b5 {[%clk
0:00:39.5]} 32. Rc1 {[%clk 0:00:10.4]} 32... c4 {[%clk 0:00:39.7]} 33. Rf1
{[%clk 0:00:08.7]} 33... Ra4 {[%clk 0:00:36.7]} 34. Kh3 {[%clk 0:00:08.3]} 34...
b4 {[%clk 0:00:36.5]} 35. axb4 {[%clk 0:00:08.9]} 35... Rxb4 {[%clk 0:00:36.9]}
36. Rff2 {[%clk 0:00:09.5]} 36... Rb3 {[%clk 0:00:35.3]} 37. Rde2 {[%clk
0:00:09.3]} 37... Bd3 {[%clk 0:00:34.1]} 38. Rd2 {[%clk 0:00:08.9]} 38... Be4
{[%clk 0:00:34.4]} 39. Rfe2 {[%clk 0:00:07.4]} 39... Be7 {[%clk 0:00:29.8]} 40.
Bg3 {[%clk 0:00:05.9]} 40... Bb4 {[%clk 0:00:28.9]} 41. Rd1 {[%clk 0:00:05.5]}
41... Bc5 {[%clk 0:00:28.3]} 42. Bf2 {[%clk 0:00:03.8]} 42... Bf3 {[%clk
0:00:27.4]} 43. Rdd2 {[%clk 0:00:02.4]} 43... Bxe2 {[%clk 0:00:27]} 44. Rxe2
{[%clk 0:00:03.3]} 44... Kd6 {[%clk 0:00:20.7]} 45. Kg2 {[%clk 0:00:03.2]} 45...
Bb6 {[%clk 0:00:17.7]} 46. Kf3 {[%clk 0:00:02.7]} 46... Ke6 {[%clk 0:00:17.4]}
47. Be1 {[%clk 0:00:01.3]} 47... Bc7 {[%clk 0:00:17.4]} 48. Bc3 {[%clk
0:00:01.4]} 48... Be5 {[%clk 0:00:18]} 49. Bxe5 {[%clk 0:00:01.7]} 49... Kxe5
{[%clk 0:00:18.9]} 50. Rd2 {[%clk 0:00:02.1]} 50... Rd3 {[%clk 0:00:18.6]} 51.
Rc2 {[%clk 0:00:01.9]} 51... d4 {[%clk 0:00:18.1]} 52. Rxc4 {[%clk 0:00:02.1]}
52... Rxe3+ {[%clk 0:00:08.4]} 53. Kf2 {[%clk 0:00:03]} 53... Rb3 {[%clk
0:00:08.4]} 54. Rc5+ {[%clk 0:00:03.7]} 54... Kf4 {[%clk 0:00:08.4]} 55. Rc2
{[%clk 0:00:02.7]} 55... Kxg4 {[%clk 0:00:08.6]} 56. Rd2 {[%clk 0:00:03.1]}
56... Rb4 {[%clk 0:00:07.5]} 57. Ke2 {[%clk 0:00:03.7]} 57... Kxh5 {[%clk
0:00:07.2]} 58. Kd3 {[%clk 0:00:04.6]} 58... g5 {[%clk 0:00:06.8]} 59. Rg2
{[%clk 0:00:05.5]} 59... g4 {[%clk 0:00:06.3]} 60. Ke4 {[%clk 0:00:06]} 60...
Kg5 {[%clk 0:00:06.5]} 61. Kd5 {[%clk 0:00:06.3]} 61... h5 {[%clk 0:00:06.7]}
62. Kc5 {[%clk 0:00:06.8]} 62... Rb7 {[%clk 0:00:05.4]} 63. Kxd4 {[%clk
0:00:07.2]} 63... h4 {[%clk 0:00:06]} 64. Rc2 {[%clk 0:00:07.3]} 64... h3 {[%clk
0:00:06.1]} 65. Ke4 {[%clk 0:00:07.7]} 65... g3 {[%clk 0:00:05.6]} 66. Kf3
{[%clk 0:00:07.9]} 66... g2 {[%clk 0:00:04.6]} 67. Kf2 {[%clk 0:00:08.4]} 67...
Rf7+ {[%clk 0:00:02.1]} 68. Kg3 {[%clk 0:00:06.8]} 68... Rf1 {[%clk 0:00:02.5]}
69. Kxh3 {[%clk 0:00:07.3]} 69... g1=Q {[%clk 0:00:02.3]} 70. Rc5+ {[%clk
0:00:08.1]} 70... Kf4 {[%clk 0:00:02]} 71. Rc4+ {[%clk 0:00:08]} 71... Ke5
{[%clk 0:00:02.5]} 72. Rc3 {[%clk 0:00:06.3]} 72... Qh1+ {[%clk 0:00:02.5]} 73.
Kg4 {[%clk 0:00:06.8]} 73... Rg1+ {[%clk 0:00:02.8]} 74. Rg3 {[%clk 0:00:06.4]}
74... Rxg3+ {[%clk 0:00:02]} 75. Kxg3 {[%clk 0:00:07.3]} 75... Qb1 {[%clk
0:00:02]} 76. Kf3 {[%clk 0:00:08.2]} 76... Qxb2 {[%clk 0:00:02.6]} 77. Kg3
{[%clk 0:00:09.1]} 77... Qd4 {[%clk 0:00:03]} 78. Kf3 {[%clk 0:00:10]} 78...
Qe4+ {[%clk 0:00:03.4]} 79. Kg3 {[%clk 0:00:10.9]} 79... Qf4+ {[%clk 0:00:03.8]}
0-1